bitfinex-derivatives/quotes_ETHF0:USTF0_20250317
["timestamp","ask_amount","ask_price","bid_price","bid_amount"]
[1742182370684,4.7756,1910.1,1910.0,41.84716]
[1742182371174,4.7756,1910.1,1910.0,41.8472]
[1742182371385,9.03054,1910.1,1910.0,40.8]
[1742182371583,5.82274,1910.1,1910.0,40.8]
[1742182373384,9.03054,1910.1,1910.0,40.8]
[1742182373588,1.0472,1910.0,1909.9,0.00783535]
[1742182373787,1.04731,1909.8,1909.4,11.67639]
[1742182373992,5.4886,1909.7,1909.4,5.67639]
[1742182374197,1.426,1909.6,1909.4,5.67639]
[1742182374494,1.426,1909.6,1909.4,5.67638]
[1742182374693,1.426,1909.6,1909.5,40.8]
[1742182374995,1.426,1909.6,1909.5,41.84747]
[1742182376593,1.426,1909.6,1909.5,43.18807]
[1742182377293,4.821,1909.6,1909.5,43.18807]
[1742182378396,0.6686,1909.7,1909.6,1.04742]
[1742182378596,5.4883,1909.7,1909.6,3.10202]
[1742182379097,5.4883,1909.7,1909.6,43.90202]
[1742182379793,4.8197,1909.7,1909.6,43.90202]
[1742182379997,3.395,1909.7,1909.6,47.10982]
[1742182380998,3.395,1909.7,1909.6,43.90202]
[1742182381400,4.0519,1909.7,1909.6,43.90202]
[1742182381697,5.3803,1909.7,1909.6,47.10982]
[1742182382288,5.3803,1909.7,1909.6,43.90202]
[1742182384400,40.48876535,1910.2,1910.0,1.0472]
[1742182384600,1.3513,1910.1,1910.0,1.0472]
[1742182384798,4.7463,1910.1,1910.0,1.0472]
[1742182385097,36.23383535,1910.2,1910.1,1.04714]
[1742182385393,36.23383535,1910.2,1910.1,1.76404]
[1742182385394,33.75883535,1910.2,1910.1,1.76404]
[1742182385586,30.36383535,1910.2,1910.1,2.44584]
[1742182385790,30.36383535,1910.2,1910.1,3.81914]
[1742182386103,3.395,1910.6,1910.2,2.61764]
[1742182386295,4.7643,1910.6,1910.5,1.04693]
[1742182387692,4.7643,1910.6,1910.5,41.84693]
[1742182388291,3.395,1910.6,1910.5,41.84693]
[1742182388491,3.395,1910.6,1910.5,43.24593]
[1742182388891,4.8209,1910.6,1910.5,43.24593]
[1742182390896,0.00783535,1910.7,1910.6,1.04687]
[1742182391203,0.00783535,1910.7,1910.6,2.35827]
[1742182391402,1.35333535,1910.7,1910.6,2.35827]
[1742182391701,1.35333535,1910.7,1910.6,43.15827]
[1742182392193,4.74733535,1910.7,1910.6,43.15827]
[1742182393797,1.35333535,1910.7,1910.6,43.15827]
[1742182393997,4.74733535,1910.7,1910.6,43.15827]
[1742182400703,3.40183535,1910.7,1910.6,43.15827]
[1742182400906,0.00783535,1910.7,1910.6,43.15827]
[1742182401300,1.3189,1911.0,1910.6,42.1114]
[1742182401505,1.3189,1911.0,1910.7,4.6224]
[1742182401506,4.7119,1911.0,1910.7,4.6224]
[1742182401700,4.5825,1911.1,1911.0,1.04665]
[1742182401701,3.9129,1911.1,1911.0,1.04665]
[1742182401905,6.6008,1911.1,1911.0,41.84665]
[1742182402901,7.9123,1911.1,1911.0,41.84665]
[1742182404209,4.7045,1911.1,1911.0,40.8]
[1742182404605,4.7045,1911.1,1911.0,41.84665]
[1742182405110,4.7045,1911.1,1911.0,40.8]
[1742182405613,4.7045,1911.1,1911.0,41.84665]
[1742182405906,5.7511,1911.1,1911.0,40.8]
[1742182406104,4.7045,1911.1,1911.0,40.8]
[1742182406614,5.7511,1911.1,1911.0,40.8]
[1742182406811,4.7045,1911.1,1911.0,40.8]
[1742182408007,5.7511,1911.1,1911.0,40.8]
[1742182408408,4.7045,1911.1,1911.0,40.8]
[1742182408715,5.7511,1911.1,1911.0,40.8]
[1742182408914,4.7045,1911.1,1911.0,40.8]
[1742182409110,5.7511,1911.1,1911.0,40.8]
[1742182409308,8.9589,1911.1,1911.0,40.8]
[1742182409725,9.04806457,1911.1,1911.0,40.8]
[1742182409905,11.54806398,1911.1,1911.0,40.8]
[1742182410214,17.41806398,1911.1,1911.0,40.8]
[1742182411518,17.41806905,1911.1,1911.0,40.8]
[1742182413314,1.04683,1910.7,1910.4,2.46058535]
[1742182413513,4.7587,1910.6,1910.4,0.00783535]
[1742182413717,3.393,1910.5,1910.4,2.46061535]
[1742182413917,4.7926,1910.5,1910.4,2.46061535]
[1742182414107,4.7926,1910.5,1910.4,42.21363535]
[1742182414913,9.04733,1910.5,1910.4,40.80783535]
[1742182415220,39.39433,1910.5,1910.4,40.80783535]
[1742182415714,39.82169718,1910.5,1910.4,40.80783535]
[1742182415917,39.82169718,1910.5,1909.9,1.74801]
[1742182415918,48.15366926,1910.5,1909.6,3.9194]
[1742182416218,1.04726,1909.9,1909.7,1.3978]
[1742182416407,5.4835,1909.8,1909.6,4.956]
[1742182416608,1.4,1909.7,1909.6,0.7008]
[1742182416809,1.4,1909.7,1909.6,1.3978]
[1742182417017,1.4,1909.7,1909.6,42.1978]
[1742182417232,2.44736,1909.7,1909.6,42.1978]
[1742182417408,1.4,1909.7,1909.6,42.1978]
[1742182419315,1.4,1909.7,1909.6,43.24522]
[1742182419710,1.4,1909.7,1909.6,43.96832]
[1742182420619,1.4,1909.7,1909.6,47.17612]
[1742182421026,3.40083535,1909.8,1909.7,1.04736]
[1742182421217,3.40083535,1909.8,1909.7,3.11786]
[1742182421522,3.40083535,1909.8,1909.7,1.3582]
[1742182421825,3.40083535,1909.8,1909.7,42.1582]
[1742182422015,5.47323535,1909.8,1909.7,42.1582]
[1742182422216,6.52054535,1909.8,1909.7,42.1582]
[1742182422618,5.47323535,1909.8,1909.7,43.20556]
[1742182422820,5.47323535,1909.8,1909.7,42.1582]
[1742182423325,5.47323535,1909.8,1909.7,43.20556]
[1742182423822,5.47323535,1909.8,1909.7,42.1582]
[1742182424923,5.47323535,1909.8,1909.7,43.20556]
[1742182425223,3.40083535,1909.8,1909.7,43.20556]
[1742182425422,3.40183535,1909.8,1909.7,43.20556]
[1742182427229,3.40183535,1909.8,1909.7,42.1582]
[1742182427618,4.74203535,1909.8,1909.7,42.1582]
[1742182427921,5.78934535,1909.8,1909.7,42.1582]
[1742182428512,4.74203535,1909.8,1909.7,42.1582]
[1742182428718,5.78934535,1909.8,1909.7,40.8]
[1742182429028,6.46184535,1909.8,1909.7,40.8]
[1742182430118,8.96184535,1909.8,1909.7,40.8]
[1742182430315,9.05107472,1909.8,1909.7,40.8]
[1742182432623,14.92107472,1909.8,1909.7,40.8]
[1742182433428,14.83184535,1909.8,1909.7,40.8]
[1742182433632,14.92108279,1909.8,1909.7,40.8]
[1742182434431,1.04742,1909.6,1909.5,0.00783535]
[1742182434734,34.70645744,1909.6,1909.5,0.00783535]
[1742182434925,37.20645744,1909.6,1909.5,0.00783535]
[1742182435127,37.91855744,1909.6,1909.5,0.00783535]
[1742182435329,37.91855744,1909.6,1909.5,40.80783535]
[1742182435524,35.41855744,1909.6,1909.5,40.80783535]
[1742182437135,37.9185587,1909.6,1909.5,40.80783535]
[1742182438435,43.7885587,1909.6,1909.5,40.80783535]
[1742182439137,41.2885587,1909.6,1909.5,40.80783535]
[1742182439335,43.7885587,1909.6,1909.5,40.80783535]
[1742182440331,41.2885587,1909.6,1909.5,40.80783535]
[1742182441437,41.28856159,1909.6,1909.5,40.80783535]
[1742182442240,41.28856113,1909.6,1909.5,40.80783535]
[1742182443142,43.78856113,1909.6,1909.5,40.80783535]
[1742182443934,43.78856784,1909.6,1909.5,40.80783535]
[1742182444234,1.04758,1909.3,1909.2,1.4386]
[1742182444435,7.65038,1909.3,1909.2,1.4386]
[1742182444844,8.98968,1909.3,1909.2,1.4386]
[1742182445241,8.98968,1909.3,1909.2,42.2386]
[1742182446144,8.98968,1909.3,1909.2,40.8]
[1742182448247,15.37367493,1909.3,1909.2,40.8]
[1742182448442,14.9489332,1909.3,1909.2,40.8]
[1742182450144,14.9489332,1909.3,1909.2,42.1743]
[1742182450646,14.85968,1909.3,1909.2,42.1743]
[1742182451146,14.85968,1909.3,1909.2,42.885]
[1742182451839,10.4171,1909.3,1909.2,42.885]
[1742182452047,11.65188,1909.3,1909.2,42.885]
[1742182452245,14.85968,1909.3,1909.2,42.885]
[1742182452444,11.65188,1909.3,1909.2,42.885]
[1742182453149,14.85968,1909.3,1909.2,42.885]
[1742182454640,9.265,1909.3,1909.2,42.885]
[1742182455742,9.265,1909.3,1909.2,43.93264]
[1742182456344,9.265,1909.3,1909.2,42.885]
[1742182458947,3.395,1909.3,1909.2,42.885]
[1742182460047,3.395,1909.3,1909.2,43.93264]
[1742182461655,3.395,1909.3,1909.2,42.885]
[1742182463252,3.395,1909.3,1909.2,43.93264]
[1742182463453,3.395,1909.3,1909.2,42.885]
[1742182463654,3.395,1909.3,1909.2,43.93264]
[1742182464054,3.395,1909.3,1909.2,42.885]
[1742182470282,3.395,1909.3,1909.2,43.93264]
[1742182470581,3.395,1909.3,1909.2,42.885]
[1742182470780,3.395,1909.3,1909.2,43.93264]
[1742182470984,3.395,1909.3,1909.2,42.885]
[1742182472283,4.7225,1909.3,1909.2,42.885]
[1742182474778,8.97788,1909.3,1909.2,40.8]
[1742182476081,9.98881312,1909.3,1909.2,40.8]
[1742182476683,15.85881312,1909.3,1909.2,40.8]
[1742182477485,15.76956078,1909.3,1909.2,40.8]
[1742182477677,15.76956078,1909.3,1909.2,42.1781]
[1742182478288,15.85880999,1909.3,1909.2,42.1781]
[1742182478681,14.84788,1909.3,1909.2,42.1781]
[1742182479987,11.64008,1909.3,1909.2,42.1781]
[1742182480188,11.64008,1909.3,1909.2,40.8]
[1742182480490,15.85875111,1909.3,1909.2,40.8]
[1742182480885,15.76950255,1909.3,1909.2,40.8]
[1742182481090,15.85875659,1909.3,1909.2,40.8]
[1742182484593,15.85875758,1909.3,1909.2,40.8]
[1742182486393,15.85875752,1909.3,1909.2,40.8]
[1742182488492,15.85875961,1909.3,1909.2,40.8]
[1742182495798,15.85875961,1909.3,1909.2,42.1443]
[1742182496701,15.85875961,1909.3,1909.2,40.8]
[1742182499605,15.85876308,1909.3,1909.2,40.8]
[1742182500604,15.85876308,1909.3,1909.2,42.2096]
[1742182502404,15.85876308,1909.3,1909.2,42.8704]
[1742182502706,15.85875117,1909.3,1909.2,42.8704]
[1742182502905,15.85874951,1909.3,1909.2,43.5779]
[1742182503305,15.85774951,1909.3,1909.2,43.5779]
[1742182504906,14.53024951,1909.3,1909.2,43.5779]
[1742182505205,44.81700255,1909.3,1909.2,43.5779]
[1742182510098,41.42300255,1909.3,1909.2,43.5779]
[1742182510306,40.37542255,1909.3,1909.2,43.5779]
[1742182510505,42.8478,1909.3,1909.2,43.5779]
[1742182510705,36.246,1909.3,1909.2,43.5779]
[1742182511013,33.77,1909.3,1909.2,44.62554]
[1742182511905,30.376,1909.3,1909.2,44.62554]
[1742182512111,33.77,1909.3,1909.2,44.62554]
[1742182513208,34.81758,1909.3,1909.2,43.5779]
[1742182515310,33.77,1909.3,1909.2,43.5779]
[1742182516615,34.81758,1909.3,1909.2,43.5779]
[1742182517615,34.81758,1909.3,1909.2,44.62554]
[1742182517813,33.77,1909.3,1909.2,43.5779]
[1742182518617,33.77,1909.3,1909.2,44.62554]
[1742182518818,33.769,1909.3,1909.2,47.12554]
[1742182519810,9.0778,1909.6,1909.2,47.12554]
[1742182519811,9.0778,1909.6,1909.5,1.04747]
[1742182520117,12.4708,1909.6,1909.3,1.335]
[1742182520318,12.4708,1909.6,1909.4,1.04749]
[1742182520619,6.6008,1909.6,1909.5,43.84867]
[1742182521308,7.64822,1909.6,1909.5,42.8012]
[1742182521510,8.0034,1909.6,1909.5,43.84867]
[1742182522420,1.4026,1909.6,1909.5,43.84867]
[1742182522623,4.7956,1909.6,1909.5,43.84867]
[1742182525825,4.7956,1909.6,1909.5,42.8012]
[1742182526121,4.7956,1909.6,1909.5,42.1187]
[1742182526510,6.1637,1909.6,1909.5,42.1187]
[1742182527824,7.21112,1909.6,1909.5,42.1187]
[1742182528022,10.41892,1909.6,1909.5,40.8]
[1742182528212,10.508158,1909.6,1909.5,40.8]
[1742182528417,11.42761032,1909.6,1909.5,40.8]
[1742182530825,11.42761516,1909.6,1909.5,40.8]
[1742182532325,17.29761516,1909.6,1909.5,40.8]
[1742182532526,17.29761566,1909.6,1909.5,40.8]
[1742182534328,1.04764,1909.2,1909.1,1.35825649]
[1742182534530,4.44064,1909.2,1909.1,1.35825649]
[1742182534927,3.393,1909.2,1909.1,1.35825649]
[1742182535124,4.44064,1909.2,1909.1,42.15825649]
[1742182535321,5.76314,1909.2,1909.1,42.15825649]
[1742182535928,8.97094,1909.2,1909.1,40.80785649]
[1742182536330,8.97094,1909.2,1909.1,42.14485649]
[1742182538222,14.84094,1909.2,1909.1,42.14485649]
[1742182539826,14.84094,1909.2,1909.1,40.80785649]
[1742182542737,15.85019152,1909.2,1909.1,40.80785649]
[1742182545637,15.85019488,1909.2,1909.1,40.80785649]
[1742182550147,2.61945,1909.0,1908.1,4.25603]
[1742182550346,17.98484418,1909.2,1908.7,1.3146]
[1742182550347,1.04791,1908.8,1908.7,1.3146]
[1742182550541,7.73797131,1908.8,1908.7,1.3146]
[1742182551044,4.44091,1908.8,1908.7,42.1146]
[1742182551546,3.393,1908.8,1908.7,42.1146]
[1742182551740,5.87785649,1908.9,1908.7,42.1146]
[1742182551934,5.87785649,1908.9,1908.8,2.1431]
[1742182552139,5.87785649,1908.9,1908.8,2.844]
[1742182552438,3.40085649,1908.9,1908.8,2.844]
[1742182552638,5.87,1909.3,1909.0,1.04773]
[1742182552839,3.393,1909.2,1909.1,2.1431]
[1742182553137,33.5778,1909.4,1909.1,0.6955]
[1742182553338,3.393,1909.3,1909.2,1.04761]
[1742182553539,30.37,1909.4,1909.3,1.04758]
[1742182553742,33.77085649,1909.4,1909.3,1.04758]
[1742182553949,33.77085649,1909.4,1909.3,3.54758]
[1742182554149,33.77085649,1909.4,1909.3,44.34758]
[1742182555750,33.77085649,1909.4,1909.3,40.8]
[1742182556142,34.81838649,1909.4,1909.3,40.8]
[1742182558745,36.14278649,1909.4,1909.3,40.8]
[1742182559251,33.77085649,1909.4,1909.3,40.8]
[1742182559452,34.81838649,1909.4,1909.3,40.8]
[1742182559748,33.77085649,1909.4,1909.3,40.8]
[1742182560350,36.97865649,1909.4,1909.3,40.8]
[1742182560551,38.33545649,1909.4,1909.3,40.8]
[1742182561348,33.77085649,1909.4,1909.3,40.8]
[1742182561542,33.76985649,1909.4,1909.3,40.8]
[1742182561942,33.76985649,1909.4,1909.3,41.84758]
[1742182562147,33.76985649,1909.4,1909.3,40.8]
[1742182563748,33.76985649,1909.4,1909.3,41.84758]
[1742182564150,33.76985649,1909.4,1909.3,40.8]
[1742182564555,33.76985649,1909.4,1909.3,41.84758]
[1742182565959,33.76985649,1909.4,1909.3,40.8]
[1742182566560,34.81738649,1909.4,1909.3,40.8]
[1742182566755,35.22425649,1909.4,1909.3,40.8]
[1742182567059,39.47958649,1909.4,1909.3,40.8]
[1742182567560,45.43882956,1909.4,1909.3,40.8]
[1742182568760,45.43883122,1909.4,1909.3,40.8]
[1742182569061,44.39130122,1909.4,1909.3,40.8]
[1742182569253,44.30205649,1909.4,1909.3,40.8]
[1742182570056,45.34958649,1909.4,1909.3,40.8]
[1742182570550,45.43883196,1909.4,1909.3,40.8]
[1742182571461,44.30205649,1909.4,1909.3,40.8]
[1742182571861,45.34958649,1909.4,1909.3,40.8]
[1742182572263,44.30205649,1909.4,1909.3,40.8]
[1742182572562,42.14178649,1909.4,1909.3,40.8]
[1742182572755,45.34958649,1909.4,1909.3,40.8]
[1742182573156,42.14178649,1909.4,1909.3,40.8]
[1742182573664,45.43882998,1909.4,1909.3,40.8]
[1742182574363,45.4388336,1909.4,1909.3,40.8]
[1742182576158,2.61901,1909.3,1908.6,0.00785649]
[1742182576469,3.2078,1909.1,1908.6,1.46265649]
[1742182576657,4.43878,1909.0,1908.6,2.51059649]
[1742182576859,5.79938,1909.0,1908.7,1.4548]
[1742182577059,1.3606,1908.9,1908.7,1.4548]
[1742182577260,1.3606,1908.9,1908.8,40.8]
[1742182577870,1.3606,1908.9,1908.8,42.2548]
[1742182579074,3.0952,1908.9,1908.8,42.2548]
[1742182579266,2.0474,1908.9,1908.8,42.2548]
[1742182579772,1.3606,1908.9,1908.8,42.2548]
[1742182579972,5.75935,1909.0,1908.8,42.2548]
[1742182580267,4.7116,1909.0,1908.9,1.4413]
[1742182580667,5.75935,1909.0,1908.9,1.4413]
[1742182581768,4.95621,1909.1,1908.9,1.4413]
[1742182581975,3.392,1909.0,1908.9,2.4891]
[1742182582376,4.0517,1909.2,1908.9,3.9413]
[1742182582572,2.0155,1909.2,1909.1,1.04769]
[1742182582768,3.392,1909.2,1909.1,1.04769]
[1742182583977,3.392,1909.2,1909.1,4.25549]
[1742182584474,3.392,1909.2,1909.1,3.2078]
[1742182584675,4.43964,1909.2,1909.1,3.2078]
[1742182584875,3.392,1909.2,1909.1,5.63949]
[1742182586075,3.392,1909.2,1909.1,4.5918]
[1742182586278,5.13744,1909.2,1909.1,1.384]
[1742182586477,1.04773,1909.1,1908.8,41.84784]
[1742182586674,3.15183,1909.1,1908.9,1.384]
[1742182586870,1.04775,1909.0,1908.9,1.384]
[1742182587170,2.46425,1909.0,1908.9,1.384]
[1742182587479,1.4165,1909.0,1908.9,1.384]
[1742182587974,2.46425,1909.0,1908.8,40.8]
[1742182588180,3.391,1908.9,1908.8,40.8]
[1742182588476,4.7294,1908.9,1908.8,42.2042]
[1742182590179,4.7294,1908.9,1908.8,43.25206]
[1742182592078,4.7294,1908.9,1908.8,42.2042]
[1742182596375,6.4569,1908.9,1908.8,42.2042]
[1742182604984,6.4569,1908.9,1908.8,40.8]
[1742182605380,6.54617319,1908.9,1908.8,40.8]
[1742182605695,7.55644105,1908.9,1908.8,40.8]
[1742182606492,6.63544894,1908.9,1908.8,40.8]
[1742182606695,7.55621485,1908.9,1908.8,40.8]
[1742182606992,7.55621434,1908.9,1908.8,40.8]
[1742182607193,6.63544843,1908.9,1908.8,40.8]
[1742182608592,12.50544843,1908.9,1908.8,40.8]
[1742182609594,12.50545199,1908.9,1908.8,40.8]
[1742182609795,42.88445199,1908.9,1908.8,40.8]
[1742182611486,42.88444995,1908.9,1908.8,40.8]
[1742182613491,1.04791,1908.7,1908.6,0.00785649]
[1742182613791,1.04813,1908.3,1908.2,1.3881]
[1742182613997,4.43913,1908.3,1908.2,1.3881]
[1742182614491,5.84883,1908.3,1908.2,42.1881]
[1742182615194,4.8007,1908.3,1908.2,42.1881]
[1742182615394,5.84883,1908.3,1908.2,42.1881]
[1742182618589,5.84883,1908.3,1908.2,40.8]
[1742182618788,5.93813609,1908.3,1908.2,40.8]
[1742182619389,11.80813609,1908.3,1908.2,40.8]
[1742182619785,11.80813924,1908.3,1908.2,40.8]
[1742182619988,1.04819,1908.2,1908.1,0.00785649]
[1742182620193,1.04841,1907.8,1907.7,1.4021]
[1742182620487,4.44041,1907.8,1907.7,1.4021]
[1742182620895,7.64821,1907.8,1907.7,1.4021]
[1742182621085,9.07101,1907.8,1907.7,42.2021]
[1742182621293,5.86321,1907.8,1907.7,40.8]
[1742182621693,4.44041,1907.8,1907.7,40.8]
[1742182621886,7.64821,1907.8,1907.7,42.2169]
[1742182622290,9.07101,1907.8,1907.7,42.2169]
[1742182623492,9.76861,1907.8,1907.7,42.2169]
[1742182625099,8.34581,1907.8,1907.7,42.2169]
[1742182625699,9.70351,1907.8,1907.7,42.2169]
[1742182626502,6.49571,1907.8,1907.7,42.2169]
[1742182629898,5.13801,1907.8,1907.7,42.2169]
[1742182630087,3.392,1907.8,1907.7,42.2169]
[1742182630491,3.392,1907.8,1907.7,43.28132]
[1742182630695,39.4608,1908.0,1907.7,44.7329]
[1742182630898,3.393,1907.9,1907.8,2.4418]
[1742182631296,3.393,1907.9,1907.8,1.3934]
[1742182631697,4.44135,1907.9,1907.8,1.3934]
[1742182632005,3.393,1907.9,1907.8,1.3934]
[1742182632405,30.383,1908.0,1907.8,2.44181]
[1742182632706,3.393,1907.9,1907.8,2.44181]
[1742182632903,3.393,1907.9,1907.8,1.04841]
[1742182633205,3.393,1907.9,1907.7,41.86442]
[1742182633404,3.393,1907.9,1907.8,1.04841]
[1742182634399,30.383,1908.0,1907.9,1.04835]
[1742182634603,33.775,1908.0,1907.9,1.04835]
[1742182636409,1.0484,1907.9,1907.7,41.86443]
[1742182636708,34.82333,1908.0,1907.8,1.04841]
[1742182637404,1.04837,1907.9,1907.7,41.86444]
[1742182637605,34.82335,1908.0,1907.8,1.04841]
[1742182637807,33.775,1908.0,1907.7,41.86445]
[1742182638000,1.04837,1907.9,1907.7,41.86445]
[1742182638704,34.82334,1908.0,1907.8,1.0484]
[1742182638904,33.775,1908.0,1907.8,1.0484]
[1742182639707,35.1379,1908.0,1907.7,41.86443]
[1742182640004,35.1379,1908.0,1907.7,40.8]
[1742182640203,1.3629,1907.9,1907.8,1.04841]
[1742182640507,35.1379,1908.0,1907.9,1.04835]
[1742182640707,33.775,1908.0,1907.9,1.04835]
[1742182645609,30.383,1908.0,1907.9,1.04835]
[1742182645814,33.775,1908.0,1907.9,1.04835]
[1742182646207,1.347,1908.1,1907.8,3.2078]
[1742182646415,4.739,1908.1,1908.0,1.0483]
[1742182647716,4.739,1908.1,1908.0,4.2561]
[1742182647916,3.392,1908.1,1908.0,4.2561]
[1742182648615,3.392,1908.1,1908.0,3.2078]
[1742182649010,4.8437,1908.1,1908.0,4.2561]
[1742182649210,4.8437,1908.1,1908.0,3.2078]
[1742182649411,4.8437,1908.1,1908.0,4.2561]
[1742182649611,4.8437,1908.1,1908.0,3.2078]
[1742182649914,5.89194,1908.1,1907.9,1.04831]
[1742182650117,2.7952,1908.0,1907.9,1.04831]
[1742182650311,2.7952,1908.0,1907.9,2.46271]
[1742182651016,2.7952,1908.0,1907.9,2.46275]
[1742182654725,2.1163,1908.0,1907.9,2.46275]
[1742182655220,0.6646,1908.0,1907.9,2.46275]
[1742182656217,2.035,1908.0,1907.9,2.46275]
[1742182657118,0.6646,1908.0,1907.9,2.46275]
[1742182658323,0.7243,1908.2,1908.1,1.04824]
[1742182658518,0.6809,1908.3,1908.2,1.04819]
[1742182658722,0.00785649,1908.4,1908.3,1.04813]
[1742182659023,0.00785649,1908.4,1908.3,41.84813]
[1742182659223,0.00785649,1908.4,1908.3,44.34813]
[1742182659619,0.00785649,1908.4,1908.3,45.70453]
[1742182660524,0.00785649,1908.4,1908.3,46.36890647]
[1742182660720,30.391,1908.6,1908.5,1.04802]
[1742182661022,30.391,1908.6,1908.5,4.25582]
[1742182661618,30.391,1908.6,1908.5,45.05582]
[1742182661815,31.7558,1908.6,1908.5,45.05582]
[1742182662622,31.7558,1908.6,1908.5,41.84802]
[1742182664525,31.7558,1908.6,1908.5,45.05582]
[1742182666524,31.7558,1908.6,1908.5,41.84802]
[1742182666724,31.7558,1908.6,1908.5,40.8]
[1742182667025,31.7558,1908.6,1908.5,41.84802]
[1742182670624,31.7558,1908.6,1908.5,45.05582]
[1742182671830,31.7558,1908.6,1908.5,44.0078]
[1742182672033,31.7558,1908.6,1908.5,41.84802]
[1742182672730,31.7558,1908.6,1908.5,40.8]
[1742182672932,31.7558,1908.6,1908.5,41.84802]
[1742182673124,32.80377,1908.6,1908.5,40.8]
[1742182673325,31.7558,1908.6,1908.5,41.84802]
[1742182673525,31.7558,1908.6,1908.5,40.8]
[1742182673722,32.80377,1908.6,1908.5,40.8]
[1742182674934,32.89305905,1908.6,1908.5,40.8]
[1742182675233,1.04828,1908.1,1907.8,2.49668]
[1742182675432,8.005,1908.0,1907.8,2.49668]
[1742182675634,6.2225,1908.0,1907.8,2.49668]
[1742182675932,1.3726,1907.9,1907.6,0.00785649]
[1742182676133,1.3726,1907.9,1907.8,41.84841]
[1742182676534,1.3726,1907.9,1907.8,40.8]
[1742182676737,1.3726,1907.9,1907.8,41.84841]
[1742182677529,1.3726,1907.9,1907.8,40.8]
[1742182678033,2.42095,1907.9,1907.8,40.8]
[1742182678730,8.29095,1907.9,1907.8,40.8]
[1742182679329,8.71080026,1907.9,1907.8,40.8]
[1742182679537,8.38023282,1907.9,1907.8,40.8]
[1742182679729,8.80363901,1907.9,1907.8,40.8]
[1742182680435,8.38022971,1907.9,1907.8,40.8]
[1742182681738,8.29095,1907.9,1907.8,40.8]
[1742182681931,8.38022834,1907.9,1907.8,40.8]
[1742182682237,8.38022808,1907.9,1907.8,40.8]
[1742182686451,8.38019355,1907.9,1907.8,40.8]
[1742182689158,8.38017416,1907.9,1907.8,40.8]
[1742182689861,11.58797416,1907.9,1907.8,40.8]
[1742182691059,11.58800346,1907.9,1907.8,40.8]
[1742182696260,9.16705346,1907.9,1907.8,40.8]
[1742182696457,6.5998,1907.9,1907.8,40.8]
[1742182697364,6.5998,1907.9,1907.8,42.211]
[1742182698252,6.5998,1907.9,1907.8,43.25941]
[1742182698463,3.392,1907.9,1907.8,43.25941]
[1742182698855,5.58052,1908.2,1907.8,43.25941]
[1742182698856,5.58052,1908.2,1907.8,42.211]
[1742182699161,3.392,1908.1,1907.9,2.45934]
[1742182699355,4.25602,1908.2,1908.0,1.411]
[1742182699556,3.2078,1908.2,1908.0,2.45929]
[1742182699753,3.2078,1908.2,1908.1,0.0163]
[1742182699956,6.5988,1908.2,1908.1,1.4273]
[1742182701063,3.391,1908.2,1908.1,2.47554]
[1742182701363,3.391,1908.2,1908.1,1.4273]
[1742182701556,3.391,1908.2,1908.1,2.47554]
[1742182701758,4.91595,1908.5,1908.1,1.4273]
[1742182701956,1.04813,1908.3,1908.2,1.3368]
[1742182702162,3.391,1908.4,1908.2,1.3368]
[1742182702666,4.91595,1908.5,1908.2,2.38499]
[1742182702861,3.391,1908.4,1908.3,1.04813]
[1742182703061,3.391,1908.4,1908.3,2.38493]
[1742182703361,31.439,1908.6,1908.3,5.59273]
[1742182703663,3.391,1908.5,1908.4,2.45648]
[1742182704061,3.391,1908.5,1908.4,43.25648]
[1742182705271,0.00785649,1908.7,1908.6,1.04797]
[1742182705471,0.00785649,1908.7,1908.6,4.25577]
[1742182706469,0.00705649,1908.7,1908.6,6.75577]
[1742182706871,0.00705649,1908.7,1908.6,47.55577]
[1742182709673,3.391,1908.8,1908.7,1.04791]
[1742182709971,0.08927414,1908.9,1908.8,1.04786]
[1742182710364,0.08927414,1908.9,1908.8,41.84786]
[1742182714573,0.08927414,1908.9,1908.8,45.05566]
[1742182715065,3.389,1909.1,1908.8,46.5078]
[1742182715267,3.389,1909.1,1908.9,1.3853]
[1742182715468,30.391,1909.2,1909.1,1.04769]
[1742182715863,30.391,1909.2,1909.1,41.84769]
[1742182716066,30.391,1909.2,1909.1,43.21669]
[1742182716272,1.4176,1909.4,1909.3,1.04758]
[1742182716573,4.8066,1909.4,1909.3,1.04758]
[1742182716873,4.8066,1909.4,1909.3,41.84758]
[1742182718876,1.42885649,1909.5,1909.3,44.0078]
[1742182719178,0.73285649,1909.5,1909.4,1.04753]
[1742182730179,3.388,1909.7,1909.4,1.4277]
[1742182730384,1.04753,1909.4,1909.3,40.8]
[1742182730678,4.43553,1909.4,1909.3,40.8]
[1742182731785,3.388,1909.4,1909.3,40.8]
[1742182731982,4.43553,1909.4,1909.3,40.8]
[1742182732483,3.388,1909.4,1909.3,40.8]
[1742182733285,6.08,1909.4,1909.3,40.8]
[1742182737588,6.08,1909.4,1909.3,41.84758]
[1742182737788,2.692,1909.4,1909.3,41.84758]
[1742182737981,6.079,1909.4,1909.3,41.84758]
[1742182739288,4.7369,1909.4,1909.3,41.84758]
[1742182739690,4.076,1909.4,1909.3,41.84758]
[1742182741088,0.689,1909.4,1909.3,41.84758]
[1742182741795,4.7228,1909.5,1909.3,40.8]
[1742182741995,1.9997,1909.4,1909.3,41.84758]